Workbook

Sheet Liste Operation
G1: Les Operations | M1: الرقم | N1: الاسم | O1: العنوان | P1: الهاتف1 | Q1: الهاتف2 | R1: أقصى دين | S1: الرصيد | U1: الرقم | V1: الاسم | W1: العنوان | X1: الهاتف1 | Y1: الهاتف2 | Z1: أقصى دين | AA1: الرصيد | AE1: رقم الفاتورة | AF1: الاسم | AG1: المشروع | AH1: طريقة الإتفاقية | AI1: نسبة الإتفاقية | AJ1: نوع المشروع
B2: الزبون | C2: مج. الزابون groupe | E2: الممول | G2: المصاريف | I2: الحرفي | K2: العمال | M2: N° | N2: Nom | O2: Adresse | P2: Tel1 | Q2: Tel2 | R2: Max credit | S2: Solde | U2: N° | V2: Nom | W2: Adresse | X2: Tel1 | Y2: Tel2 | Z2: Max credit | AA2: Solde | AD2: Assemble | AE2: N° Facture | AF2: N° Pojet | AG2: Nom | AH2: Adresse | AI2: Type Contrat | AJ2: %Contrat | AK2: Type Projet
A3: ARB | B3: Clients | C3: Grp. Operation | E3: Fourniceur | G3: Frais | I3: Soutraitan | K3: Travailleur | M3: 1 | N3: الحاج عشور بانوح | O3: باردو | P3: 0555-19-28-68 | Q3: 0663-58-70-99 | U3: 1 | V3: مورد مختلف | AD3: حاجي الهاشمي_P1_Tout | AE3: 1 | AF3: P1 | AG3: حاجي الهاشمي | AH3: Centre ville | AI3: FP | AK3: Tout
A4: دفعات | B4: versements | C4: GR1 | E4: Achats | G4: Ecart | I4: Travaux Aluminium | K4: مجاهد مصطفى | M4: 2 | N4: الشيخ بالحاج مصطفى | O4: الشيخ بالحاج | U4: 2 | V4: باللو عبد الرحمان | W4: حديد | X4: القرارة | Y4: 0662-44-33-53 | Z4: 0560-32-16-24 | AD4: حاجي الهاشمي_P2_Structure | AE4: =AE3+1 -> 2 | AF4: P2 | AG4: حاجي الهاشمي | AH4: Bardou | AI4: % | AJ4: 0.125 | AK4: Structure
A5: بلوك | B5: Bloc | C5: GR1 | E5: Avoir | G5: Frais Divers | I5: soudeur | K5: صياغ محمد | M5: 1 | N5: الحاج عشور بانوح | O5: باردو | P5: 0555-19-28-68 | Q5: 0663-58-70-99 | U5: 3 | V5: كريزو إبراهيم | W5: مواد البناء | X5: القرارة | Y5: 0696-04-06-03 جمال | Z5: 0657-06-13-06 عمر | AD5: جهلان أحمد_P3_Divers | AE5: =AE4+1 -> 3 | AF5: P3 | AG5: جهلان أحمد | AH5: LAAMIED لعميد | AI5: FP | AK5: Divers
A6: ايصال كهرباء | B6: Branchement Electricité | C6: GR6 | G6: transport Dim bire | I6: Mandeuvre pinter | K6: حميد أوجانه جمال | M6: 2 | N6: الشيخ بالحاج مصطفى | O6: الشيخ بالحاج | U6: 4 | V6: طالب عيسى | W6: كريار | X6: القرارة | Y6: 0662-88-79-32 عيسى | Z6: 0551-88-95-45 | AD6: حاجي يوسف بن مصطفى_P4_BrIcole | AE6: 4 | AF6: P4 | AG6: حاجي يوسف بن مصطفى | AH6: القرية | AI6: FP | AK6: BrIcole
A7: ايصال الغاز | B7: Branchement GAZE | C7: GR2 | G7: Bereau المكتب | I7: Montage climatiseur | M7: 3 | N7: بيوض عمارة | O7: القرارة | U7: 5 | V7: سليمان محمد | W7: كنكاري | X7: القرارة | Y7: 029-26-23-83 | Z7: 0699-60-85-76 محمد | AD7: الحاج عشور بانوح_P5_Finition | AE7: 5 | AF7: P5 | AG7: الحاج عشور بانوح | AH7: Centre ville | AI7: % | AJ7: 0.125 | AK7: Finition
A8: ايصال الماء | B8: Branchement L'eau | C8: GR2 | G8: Investissement إستثمار | I8: كرلور أحمد Carleur | M8: 4 | N8: جهلان أحمد | O8: الشيخ بالحاج | U8: 6 | V8: نجار يحي | W8: رخام | X8: القرارة | Y8: 0552-20-94-06 | AD8: حاجي الهاشمي_P6_BrIcole | AE8: 6 | AF8: P6 | AG8: حاجي الهاشمي | AH8: Centre ville | AI8: % | AJ8: 0.125 | AK8: BrIcole
A9: بريكول | B9: Bricole divers | C9: GR3 | G9: Reparation hirbil | I9: ماصو أحمد Macon | M9: 5 | N9: حاجي الحاج | O9: القرارة | U9: 7 | V9: حفار مصطفى | W9: فايونص | X9: القرارة | Y9: 0662-51-41-20 | AD9: حاجي الهاشمي_p6_BrIcole | AE9: 7 | AF9: p6 | AG9: حاجي الهاشمي | AH9: Centre ville | AI9: % | AJ9: 0.125 | AK9: BrIcole
A10: بريك | B10: Brique | C10: GR4 | G10: Carbure إسونس | I10: كرلور ابراهم Carleur | M10: 6 | N10: حاجي الهاشمي | O10: القرارة | U10: 8 | V10: نجار تامجرت صالح رومبوس | W10: نجارة | X10: القرارة | Y10: 0549-64-59-17
A11: كارلور | B11: Carreleur | C11: GR6 | M11: 7 | N11: حاجي يوسف بن مصطفى | U11: 9 | V11: حميد أوجانه زواري | W11: كهرباء عامة | X11: القرارة | Y11: 0555-14-81-59 عمر | Z11: 029-26-14-07
A12: سيمون | B12: Cimon | C12: GR5 | M12: 8 | N12: حاجي نورالدين | O12: القرارة | U12: 10 | V12: دبيلي إبراهيم | W12: رخام | X12: القرارة | Y12: 0659-61-82-52
A13: سيمون كول | B13: Cimon colle | C13: GR6 | M13: 9 | N13: حفار محمد | O13: بوقرطاس | U13: 11 | V13: نجار الناصر الحاج | W13: نجارة | X13: القرارة | Y13: 0552-20-94-06
A14: سانتورة راقدة | B14: Cinture Dorme | C14: GR1 | M14: 10 | N14: كروم حمو | O14: القرارة | U14: 12 | V14: عبداللاوي بشير بلاطر | W14: بلاطر | X14: القرارة | Y14: 0698-56-67-07
A15: بنيان بريك | B15: Construction Brique | C15: GR6 | M15: 11 | N15: مشترك | O15: مدرسة طاهر شوشان | U15: 13 | V15: آدار اينورار | W15: بلومبي | X15: القرارة | Y15: 0553-00-77-65 ويرو | AG15: حاجي يوسف بن مصطفى | AI15: =VLOOKUP(AG15,AE3:AL9,2,FALSE) -> 
A16: بنيان قالب بلان | B16: Construction Moule plain | C16: GR6 | M16: 12 | N16: جديد1 | U16: 14
A17: بنيان حجرة | B17: Construction Piere | C17: GR6 | U17: 15
A18: كهربائي | B18: Electricien | C18: GR4 | AE18: 1 | AF18: P1 | AG18: حاجي الهاشمي | AH18: Centre ville | AI18: FP | AK18: Tout | AL18: =AG18&"_"&AF18&"_"&AK18 -> حاجي الهاشمي_P1_Tout
A19: دروج | B19: Escalier | C19: GR5 | AE19: =AE18+1 -> 2 | AF19: P2 | AG19: حاجي الهاشمي | AH19: Bardou | AI19: % | AJ19: 0.125 | AK19: Structure | AL19: حاجي الهاشمي_P2_Structure
A20: فايونص | B20: Faïence | C20: GR6 | AE20: =AE19+1 -> 3 | AF20: P3 | AG20: جهلان أحمد | AH20: LAAMIED لعميد | AI20: FP | AK20: Divers | AL20: جهلان أحمد_P3_Divers
A21: بيفيسي | B21: Faux Plafond PVC | C21: GR6 | T21: كريزو إبراهيم | V21: =VLOOKUP(T21,U3:Z8,1,FALSE) ->  | AE21: 4 | AF21: P4 | AG21: حاجي يوسف بن مصطفى | AH21: القرية | AI21: FP | AK21: BrIcole | AL21: حاجي يوسف بن مصطفى_P4_BrIcole
A22: حديد | B22: Fère | C22: GR2 | AE22: 5 | AF22: P5 | AG22: الحاج عشور بانوح | AH22: Centre ville | AI22: % | AJ22: 0.125 | AK22: Finition | AL22: الحاج عشور بانوح_P5_Finition
A23: فيش بوطو | B23: Fiche Poteaux | C23: GR1 | AE23: 6 | AF23: P6 | AG23: حاجي الهاشمي | AH23: Centre ville | AI23: % | AJ23: 0.125 | AK23: BrIcole | AL23: حاجي الهاشمي_P6_BrIcole
A24: حفر | B24: Forage | C24: GR1 | AE24: 7 | AF24: p6 | AG24: حاجي الهاشمي | AH24: Centre ville | AI24: % | AJ24: 0.125 | AK24: BrIcole | AL24: حاجي الهاشمي_p6_BrIcole
A25: قرانيتو | B25: Granito | C25: GR1
A26: قرافي | B26: Gravis | C26: GR6
A27: تحراش | B27: Harcèlement | C27: GR2
A28: لفابو | B28: lavabo | C28: GR2
A29: سينسمو | B29: la Cenis sement | C29: GR3
A30: ادخال السلعة | B30: L'entree de produit | C30: GR4
A31: دامبير | B31: les boule marbre escalier | C31: GR6
A32: بومب ضالة | B32: Location pompe pour sol | C32: GR5
A33: قالب | B33: Macon | C33: GR6
A34: ماربر | B34: Marbre | C34: GR1
A35: سلع, بانتور | B35: Produit Peinture | C35: GR6
A36: رخام | B36: Marbre | C36: GR6
A37: ألمنيوم | B37: Menuiseries Aluminium | C37: GR6
A38: نجار | B38: Menuiseries Bois | C38: GR4
A39: تركيب كوادر | B39: Montage carreleur | C39: GR5
A40: تركاب كادر | B40: Montage des cadre | C40: GR6
A41: تركاب أنبوسط | B41: Montage Imposte | C41: GR6
A42: بلاك شوفونت | B42: Montage plaque chauffante | C42: GR2
A43: تركاب بورطاي | B43: Montage Portail | C43: GR1
A44: تركاب باب | B44: Montage Porte | C44: GR6
A45: تركاب ريزين | B45: Montage Rizine escalier | C45: GR2
A46: قالب بلان | B46: Moule Plain | C46: GR2
A47: نيتواياج | B47: Nettoyage | C47: GR3
A48: بانتر | B48: Peintre | C48: GR4
A49: بانتور بوا | B49: Peinture chambre | C49: GR6
A50: سلعة بانتورة | B50: Peinture du Portes | C50: GR5
A51: بنتر فينال | B51: peinture final | C51: GR6
A52: حجرة | B52: Pier | C52: GR1
A53: لابلانت | B53: Plainte | C53: GR6
A54: بلاط فورم | B54: Plate Forme | C54: GR6
A55: بلاطري | B55: plâtrerie | C55: GR6
A56: بلومبي | B56: Plomberie | C56: GR4
A57: بوطو | B57: Poteaux | C57: GR5
A58: سلعة سينسمو | B58: produit de Cenis sèment | C58: GR6
A59: سلعة كهربائي | B59: Produit d'électricité | C59: GR6
A60: سلعة بلاطر | B60: produit Plâtre | C60: GR2
A61: سلعة بلومبي | B61: produit Plomberie | C61: GR1
A62: سلعة كانكاري | B62: Produit Quinqueillrie | C62: GR6
A63: تراب | B63: Sable | C63: GR1
A64: اخراج الردم | B64: Sortie de remplissage | C64: GR6
A65: حداد | B65: soudeur | C65: GR6
A66: سومال | B66: Soumel | C66: GR6
A67: تيف | B67: TIFE | C67: GR4
A68: نقل | B68: Transport | C68: GR5
A69: مونوفري | B69: Travailleur | C69: GR6
A70: خدمات مختلفة | B70: Travaux Divers | C70: GR6
A71: زجاج | B71: Verre | C71: GR2
C74: O

Sheet Formulaire
C1: تم تعديل تطبيق المعادله | F1: Programe Gestionaire Des projets
G3: =COUNTA(OFFSET('Liste Operation'!$AH$2,MATCH(Formulaire!D6,'Liste Operation'!$AG$3:$AH$9,0),,COUNTIF('Liste Operation'!$AH$3:$AH$9,Formulaire!D6),1)) -> 1 | U3: حاجي | X3: =VLOOKUP(U3,V6:AE11,2,FALSE) -> Centre ville
L5: =COUNT(Detailoperation[N° Enr.]) -> 1
C6: حاجي الهاشمي_P6_BrIcole | D6: =VLOOKUP(C6,Table4[#All],4,0) -> حاجي الهاشمي | G6: Adresse | H6: =VLOOKUP(C6,Table4[#All],5,0) -> Centre ville | J6: Type Contrat | K6: =VLOOKUP(C6,Table4[#All],6,0) -> % | M6: Type Projet | N6: =VLOOKUP(C6,Table4[#All],8,0) -> BrIcole | P6: الرصيد النظري | Q6: =Conclusion!B5 -> 15000 | S6: =V6&"_"&U6&"_"&Z6 -> أحمد_P3_Divers | T6: =T5+1 -> 1 | U6: P3 | V6: أحمد | W6: LAAMIED لعميد | X6: FP | Z6: Divers
P7: الخزانة Caisse | Q7: =Conclusion!B6 -> 15000 | S7: حاجي يوسف_P4_BrIcole | T7: 2 | U7: P4 | V7: حاجي يوسف | W7: القرية | X7: FP | Z7: BrIcole
C8: DATE | D8: 2021-10-02 | G8: N° Projet | H8: =VLOOKUP(C6,Table4[#All],3,0) -> P6 | J8: %Contrat | K8: =VLOOKUP(C6,Table4[#All],7,0) -> 0.125 | M8: N° FACTURE | N8: =VLOOKUP(C6,Table4[#All],2,0) -> 6 | S8: بانوح_P5_Finition | T8: 3 | U8: P5 | V8: بانوح | W8: Centre ville | X8: % | Y8: 0.125 | Z8: Finition
S9: حاجي _P6_BrIcole | T9: 4 | U9: P6 | V9: حاجي | W9: Centre ville | X9: % | Y9: 0.125 | Z9: BrIcole
S10: حاجي _p6_BrIcole | T10: 5 | U10: p6 | V10: حاجي | W10: Centre ville | X10: % | Y10: 0.125 | Z10: BrIcole
J11: Reglements | S11: _P8_ | T11: 6 | U11: P8
C12: Clients-Fourniceur | G12: Emploi- Frais-Soutreton
B15: 1 | C15: Type Operation | D15: Clients | F15: 6 | G15: Longueur
B17: 2 | C17: Operation/ Nom | D17: Branchement Electricité | F17: 7 | G17: Largeur
D18: =IF(D15="fourniceur","Detail_Clients","") -> 
B19: 3 | C19: Fourniceur | D19: كريزو إبراهيم | F19: 8 | G19: Jour de Travail
B21: 4 | C21: Mantont | D21: 25000 | F21: 9 | G21: M² | H21: =+H15*H17 -> 0
B23: 5 | C23: Observation | F23: 10 | G23: ML
C25: Fourniture et Pose | D25: 30000 | F25: 11 | G25: Prix | H25: 75
G27: Valeur | H27: =H25*H21 -> 0
N29: الحقوق محفوظة HABA

Sheet Detail Operation
D5: =SUM('Detail Operation'!AC6) -> 0 | AA5: =SUBTOTAL(109,AA8:AA1101) -> 0 | AB5: =SUBTOTAL(109,AB8:AB1101) -> 15000
A6: الرقم | B6: التاريخ | C6: إسم الزابون | D6: العنوان | E6: رقم المشروع | F6: رقم الفاتورة | G6: نوع الإتفاقية | H6: نسبة الإتفاقية | I6: نوع المشروع | J6: نوع العملية | K6: العملية | L6: إسم الممول | M6: الحرفي | N6: العمال | O6: الطول | P6: العرض | Q6: أيام العمل | R6: متر مربع-أيام | S6: متر طولي | T6: السعر | U6: المبلغ | V6: نسبة الزابون | W6: مبلغ F/P | X6: المجموع | Y6: الدفعه | Z6: خالص | AA6: الدفعات | AB6: السحوبات | AC6: ملاحظات
A7: N° Enr. | B7: DATE | C7: Clients | D7: Adresse | E7: N° PROJET | F7: N° Facture | G7: Type Contrat | H7: %Contrat | I7: Type Projet | J7: Type operation | K7: Operation | L7: Fournisseur | M7: sou triton | N7: Travaeullre | O7: Longueur | P7: Largeur | Q7: N. JOUR | R7: M² | S7: ML | T7: Prix | U7: Valeur | V7: % Client | W7: Mantont F/P | X7: Mt.TOTAL | Y7: VERSEMENTS | Z7: Régler | AA7: Crédit | AB7: Début | AC7: Observation | AK7: 1 | AL7: 12/012021 | AM7: الشيخ بالحاج مصطفى | AN7: Bardou | AO7: p1 | AP7: Clients | AQ7: versements | AS7: 12 | AT7: 14 | AU7: 15 | AX7: 75 | AY7: 1125 | AZ7: 0.05 | BA7: 1181.25 | BB7: 15000 | BC7: x | BE7: 16181.25 | BF7: qsdqsfqsf
A8: =1+A9 -> 1 | B8: 12/012021 | C8: الشيخ بالحاج مصطفى | D8: Bardou | E8: p1 | J8: Branchement Electricité | L8: دبيلي إبراهيم | M8: كرلور أحمد Carleur | N8: مجاهد مصطفى | O8: 0 | P8: 0 | Q8: 0 | R8: =Detailoperation[[#This Row],[Largeur]]*Detailoperation[[#This Row],[Longueur]] -> 0 | T8: 75 | U8: =IF(Detailoperation[[#This Row],[N. JOUR]]>0,Detailoperation[[#This Row],[N. JOUR]]*Detailoperation[[#This Row],[Prix]],IF(Detailoperation[[#This Row],[M²]]>0,Detailoperation[[#This Row],[M²]]*Detailoperation[[#This Row],[Prix]],Detailoperation[[#This Row],[ML]]*Detailoperation[[#This Row],[Prix]])) -> 0 | V8: 0.05 | X8: =IF(Detailoperation[[#This Row],[% Client]]>0,Detailoperation[[#This Row],[Valeur]]*Detailoperation[[#This Row],[% Client]]+Detailoperation[[#This Row],[Valeur]],Detailoperation[[#This Row],[Valeur]]) -> 0 | Y8: 15000 | Z8: x | AA8: =IF(OR(Detailoperation[[#This Row],[Operation]]="avoir",Detailoperation[[#This Row],[Operation]]="versements"),Detailoperation[[#This Row],[VERSEMENTS]],"") ->  | AB8: =IF(OR(Detailoperation[[#This Row],[Operation]]="avoir",Detailoperation[[#This Row],[Operation]]="versements"),"",Detailoperation[[#This Row],[Mantont F/P]]+Detailoperation[[#This Row],[VERSEMENTS]]+Detailoperation[[#This Row],[Mt.TOTAL]]) -> 15000 | AC8: qsdqsfqsf

Sheet Conclusion
A1: Operation | B1: MONTAN
A2: الدفعات | B2: =SUM(Detailoperation[Début]) -> 15000
A3: المبلغ السالك | B3: =SUMIF(Detailoperation[Régler],"√",Detailoperation[Crédit]) -> 0
A4: المبلغ الغير سالك | B4: =SUMIF(Detailoperation[Régler],"x",Detailoperation[Crédit]) -> 0
A5: الرصيد النظري | B5: =B6-B4 -> 15000
A6: الخزانة Caisse | B6: =B2-B3 -> 15000

Sheet Edition
C1: M.M Entrepreneur
A2: Date: | B2: 44467
A3: Clients: | B3: Hadji Rachid
B4: Chantier Guerrara
A6: Finition Final
A8: Quantité | B8: Détail | C8: prix | D8: Total
A9: 1 | B9: Travaux Aluminium | C9: 173500 | D9: =+C9*A9 -> 173500
A10: 1 | B10: Pinter bricole garage chambre cave) | C10: 23140 | D10: =+C10*A10 -> 23140
A11: 1 | B11: Peinture chambre | C11: 18000 | D11: 18000
A12: 1 | B12: Montage plaque chauffante | C12: 5000 | D12: 5000
A13: 1 | B13: Bricole porte tirasse | C13: 1500 | D13: 1500
A14: 1 | B14: soudeur porte couloire et gréage | C14: 33000 | D14: 33000
A15: 1 | B15: Montage Rizine escalier | C15: 15000 | D15: 15000
A16: 1 | B16: Branchement GAZE | C16: 16345 | D16: 16345
A17: 1 | B17: Branchement L'eau | C17: 45000 | D17: 45000
A18: 1 | B18: verre | C18: =20300+4000+650 -> 24950 | D18: 24950
A19: 1 | B19: Mandeuvre pinter | C19: 292770 | D19: 292770
A20: 1 | B20: peinture final | C20: 102500 | D20: 102500
A21: 1 | B21: Marbre | C21: =3500+11000+94091 -> 108591 | D21: 108591
A22: 1 | B22: transport Dim bire | C22: =7500+2400+2000 -> 11900 | D22: 11900
A23: 1 | B23: Marchandise Peinture | C23: 166660 | D23: 166660
A24: 1 | B24: Cimon | C24: 1320 | D24: 1320
A25: 1 | B25: Cimon colle | C25: 530 | D25: 530
A26: 1 | B26: l lavabo | C26: 8800 | D26: 8800
A27: 1 | B27: Faux Plafond PVC | C27: 6500 | D27: 6500
A28: 1 | B28: Montage climatiseur | C28: 60000 | D28: 60000
A29: 1 | B29: les boule marbre escalier | C29: 1600 | D29: 1600
A30: 1 | B30: Macon | C30: 92500 | D30: 92500
A31: 1 | B31: Menuiserie (Placard Baguette Etagère) | C31: =75000+1500+10000+29640 -> 116140 | D31: 116140
A32: 1 | B32: Peinture du Portes | C32: 145000 | D32: 145000
A33: TOTAL | D33: =SUM(D9:D32) -> 1470246
A34: % DE TRAVAIL | D34: =+D33*12.5% -> 183780.75
A35: TOTAL GLOBAL | D35: =SUM(D33:D34) -> 1654026.75
A37: Avance
A38: Date | B38: Détail | D38: Total
A39: 44257 | B39: Rachid MUSTAFA | D39: 200000
A40: 44292 | B40: Rachid MUSTAFA (CPH) | D40: 200000
B41: Reste du ben aoumeur Verre | D41: 185000
D42: =SUM(D39:D41) -> 585000
A45: 44467 | B45: Solde Final | D45: =D35-D42 -> 1069026.75

Sheet Feuil1
